bitfinex-derivatives/quotes_BTCF0:USTF0_20250915
["timestamp","ask_amount","ask_price","bid_price","bid_amount"]
[1757934890123,0.41794294,115130.0,115120.0,0.95417701]
[1757934890524,0.41794294,115130.0,115120.0,0.81969]
[1757934890717,0.41794294,115130.0,115120.0,0.95417701]
[1757934890914,0.41794294,115130.0,115120.0,0.96786701]
[1757934892324,0.41794294,115130.0,115120.0,0.95417701]
[1757934893225,0.41794294,115130.0,115120.0,0.81969]
[1757934893427,0.41794294,115130.0,115120.0,0.81961]
[1757934893725,0.55242995,115130.0,115120.0,0.81961]
[1757934893928,0.41794294,115130.0,115120.0,0.81961]
[1757934894122,0.55242995,115130.0,115120.0,0.81961]
[1757934894831,0.41794294,115130.0,115120.0,0.95409701]
[1757934896229,0.40486294,115130.0,115120.0,0.83259]
[1757934896628,0.41767294,115130.0,115120.0,0.95409701]
[1757934898230,0.41767294,115130.0,115120.0,0.15593701]
[1757934898528,0.41767294,115130.0,115120.0,0.95381701]
[1757934900130,0.4180145,115130.0,115120.0,0.15593701]
[1757934900333,0.4180145,115130.0,115120.0,0.95349701]
[1757934902825,0.4180145,115130.0,115120.0,0.15593701]
[1757934903030,0.4180145,115130.0,115120.0,0.95301701]
[1757934903426,0.55250151,115130.0,115120.0,0.02145]
[1757934903734,0.03414,115110.0,115100.0,0.02214]
[1757934903927,0.4166345,115110.0,115100.0,0.84750701]
[1757934904526,0.42536608,115110.0,115100.0,0.84750701]
[1757934904926,0.4166345,115110.0,115100.0,0.15662701]
[1757934905126,0.4166345,115110.0,115100.0,0.02214]
[1757934905332,0.03414,115100.0,115090.0,0.83918236]
[1757934905530,0.4166345,115100.0,115090.0,0.83918236]
[1757934905726,0.39494,115100.0,115090.0,0.83918236]
[1757934906731,0.39494,115100.0,115090.0,0.97366937]
[1757934907331,0.52942701,115100.0,115090.0,0.02214]
[1757934907532,0.55109931,115100.0,115090.0,0.79668]
[1757934908133,0.03414,115090.0,115080.0,0.02214]
[1757934908431,0.03414,115080.0,115070.0,0.17679705]
[1757934908632,0.39494,115080.0,115070.0,0.97331705]
[1757934908832,0.39494,115080.0,115070.0,0.15662701]
[1757934909034,0.39494,115080.0,115070.0,0.95306701]
[1757934910728,0.39494,115080.0,115060.0,1.70161581]
[1757934910729,0.52942701,115080.0,115060.0,1.70161581]
[1757934911029,0.37361,115070.0,115060.0,1.82312282]
[1757934911234,0.37361,115070.0,115060.0,2.63242282]
[1757934912337,0.37361,115070.0,115060.0,2.63342282]
[1757934913237,0.37361,115070.0,115060.0,1.83710282]
[1757934913437,0.37361,115070.0,115060.0,2.63350282]
[1757934913834,0.3608,115070.0,115060.0,2.63350282]
[1757934919446,0.3668,115070.0,115060.0,2.63350282]
[1757934923651,0.006,115070.0,115060.0,3.54878983]
[1757934923949,0.006,115070.0,115060.0,4.07878983]
[1757934924145,0.006,115070.0,115060.0,3.94430282]
[1757934924342,0.006,115070.0,115060.0,3.77430282]
[1757934924857,0.006,115070.0,115060.0,4.06878983]
[1757934925360,0.006,115070.0,115060.0,4.21878983]
[1757934928257,0.006,115070.0,115060.0,4.30567163]
[1757934929553,0.006,115070.0,115060.0,3.99567163]
[1757934929754,0.006,115070.0,115060.0,4.16567163]
[1757934931055,0.006,115070.0,115060.0,3.36927163]
[1757934931255,0.006,115070.0,115060.0,4.16411163]
[1757934931958,0.006,115070.0,115060.0,3.36927163]
[1757934932154,0.37361,115100.0,115070.0,0.0868738]
[1757934932358,0.3959,115100.0,115090.0,0.17044701]
[1757934935158,0.41757867,115100.0,115090.0,0.96524701]
[1757934935462,0.41757867,115100.0,115090.0,0.17044701]
[1757934935754,0.41757867,115100.0,115090.0,0.96524701]
[1757934936257,0.41757867,115100.0,115090.0,0.17044701]
[1757934936448,0.41757867,115100.0,115090.0,0.96524701]
[1757934936852,0.3959,115100.0,115090.0,0.96524701]
[1757934937754,0.3959,115100.0,115090.0,0.83076]
[1757934938061,0.3959,115100.0,115090.0,0.96524701]
[1757934938261,0.41757962,115100.0,115090.0,0.17044701]
[1757934938652,0.01375,115090.0,115080.0,0.97312985]
[1757934938953,0.01375,115070.0,115060.0,2.06241581]
[1757934939158,0.01375,115070.0,115060.0,2.99170282]
[1757934939363,0.01375,115070.0,115060.0,1.32342282]
[1757934939663,0.01375,115070.0,115060.0,1.21224581]
[1757934939664,0.03604,115070.0,115060.0,1.21224581]
[1757934939857,0.03604,115070.0,115060.0,0.85144581]
[1757934940162,0.39684,115070.0,115060.0,0.97295282]
[1757934940766,0.39684,115070.0,115060.0,0.17815282]
[1757934941061,0.39684,115070.0,115060.0,0.17915282]
[1757934941264,0.39684,115070.0,115060.0,0.97395282]
[1757934941955,0.39684,115070.0,115060.0,0.17915282]
[1757934942356,0.39684,115070.0,115060.0,0.04466581]
[1757934942551,0.3608,115080.0,115060.0,1.95740282]
[1757934942862,0.02229,115080.0,115070.0,0.39676]
[1757934943058,0.02229,115090.0,115080.0,0.03596]
[1757934943260,0.02229,115090.0,115080.0,0.96524701]
[1757934943450,0.02229,115090.0,115080.0,1.09973402]
[1757934943856,0.02229,115090.0,115080.0,0.96524701]
[1757934944253,0.02229,115090.0,115080.0,1.09973402]
[1757934944663,0.3608,115100.0,115080.0,1.26973402]
[1757934944854,0.38309,115100.0,115090.0,0.17044701]
[1757934947768,0.38309,115100.0,115090.0,0.96524701]
[1757934951868,0.38309,115100.0,115090.0,0.96530194]
[1757934952068,0.38309,115100.0,115090.0,1.09984388]
[1757934952269,0.02229,115100.0,115090.0,1.09984388]
[1757934953567,0.02229,115100.0,115090.0,1.34984388]
[1757934953871,0.02218,115110.0,115100.0,0.03466]
[1757934954071,0.02218,115110.0,115100.0,0.30374388]
[1757934954758,0.3608,115120.0,115100.0,1.84380582]
[1757934954963,0.38298,115120.0,115110.0,0.30374388]
[1757934955869,0.02218,115120.0,115110.0,0.30374388]
[1757934956170,0.38298,115120.0,115110.0,0.30374388]
[1757934956470,0.02218,115120.0,115110.0,0.30374388]
[1757934957373,0.38221,115130.0,115120.0,0.01265]
[1757934957575,0.38221,115130.0,115120.0,1.09828388]
[1757934958176,0.40382567,115130.0,115120.0,1.09828388]
[1757934959167,0.38221,115130.0,115120.0,1.09828388]
[1757934959366,0.38221,115130.0,115120.0,1.11854885]
[1757934960174,0.38221,115130.0,115120.0,0.32386885]
[1757934960375,0.38221,115130.0,115120.0,0.84938497]
[1757934960570,0.38221,115130.0,115120.0,1.11846885]
[1757934960872,0.38221,115130.0,115120.0,0.84938497]
[1757934961082,0.38221,115130.0,115120.0,1.11846885]
[1757934962474,0.39548,115130.0,115120.0,1.11846885]
[1757934962869,0.38221,115130.0,115120.0,1.11846885]
[1757934963671,0.3608,115130.0,115120.0,1.11846885]
[1757934964374,0.38221,115130.0,115120.0,0.84938497]
[1757934964681,0.3608,115130.0,115120.0,1.11846885]
[1757934965982,0.3608,115130.0,115120.0,1.25301079]
[1757934966282,0.3608,115130.0,115120.0,1.50301079]
[1757934966780,0.3608,115140.0,115130.0,0.03452]
[1757934966980,0.3608,115140.0,115130.0,0.30360388]
[1757934967176,0.38221,115140.0,115130.0,0.30360388]
[1757934967473,0.03468,115130.0,115120.0,0.83665497]
[1757934967678,0.53002194,115130.0,115120.0,0.83665497]
[1757934967873,0.5044801,115130.0,115120.0,0.83665497]
[1757934968275,0.52605587,115130.0,115120.0,0.84930497]
[1757934968474,0.52605587,115130.0,115120.0,0.98384691]
[1757934968682,0.77605587,115130.0,115110.0,0.14745194]
[1757934968871,0.52365194,115120.0,115110.0,0.02187]
[1757934969075,0.54522771,115120.0,115110.0,0.15641194]
[1757934969782,0.53516441,115120.0,115110.0,0.15641194]
[1757934971685,0.52826441,115120.0,115110.0,0.16906194]
[1757934971877,0.39372247,115120.0,115110.0,0.16906194]
[1757934972076,0.52826441,115120.0,115110.0,0.16906194]
[1757934972880,0.39372247,115120.0,115110.0,0.16906194]
[1757934973183,0.52826441,115120.0,115110.0,0.16906194]
[1757934973382,0.53516441,115120.0,115110.0,0.15641194]
[1757934974279,0.91970635,115120.0,115100.0,0.14719194]
[1757934974480,0.51675194,115110.0,115100.0,0.16906194]
[1757934974682,0.53832771,115110.0,115100.0,0.16906194]
[1757934975285,0.55159771,115110.0,115100.0,0.16906194]
[1757934976186,0.55159771,115110.0,115100.0,0.17006194]
[1757934977387,0.55159771,115110.0,115100.0,0.96458194]
[1757934978191,0.53002194,115110.0,115100.0,0.17006194]
[1757934978393,0.53002194,115110.0,115100.0,1.09912388]
[1757934979490,0.53002194,115110.0,115100.0,0.13554194]
[1757934980383,0.78002194,115110.0,115100.0,0.001]
[1757934980589,0.80165161,115110.0,115100.0,0.001]
[1757934982484,0.80165161,115110.0,115100.0,0.13454194]
[1757934982689,0.80165161,115110.0,115100.0,0.15641194]
[1757934984196,0.78002194,115110.0,115100.0,0.15641194]
[1757934985299,0.64548,115110.0,115100.0,0.15641194]
[1757934985489,0.78002194,115110.0,115100.0,0.15641194]
[1757934986398,0.80161798,115110.0,115100.0,0.15641194]
[1757934987397,0.80161798,115110.0,115100.0,0.13454194]
[1757934987902,0.80161798,115110.0,115100.0,0.15767194]
[1757934988995,0.01322,115100.0,115090.0,0.02313]
[1757934989199,0.02833,115090.0,115080.0,0.95219194]
[1757934989387,0.52367194,115090.0,115080.0,0.02313]
[1757934989592,0.02828,115080.0,115070.0,0.15767194]
[1757934989792,0.38908,115080.0,115070.0,0.02313]
[1757934989992,0.52362194,115080.0,115070.0,0.15767194]
[1757934990295,0.38908,115080.0,115070.0,0.15767194]
[1757934990492,0.38908,115080.0,115070.0,0.17128194]
[1757934990691,0.38218,115080.0,115070.0,0.96580194]
[1757934993201,0.38218,115090.0,115080.0,0.03674]
[1757934993395,0.38218,115090.0,115080.0,0.30582388]
[1757934994801,0.3608,115090.0,115080.0,0.30582388]
[1757934998812,0.3608,115100.0,115090.0,0.01361]
[1757934999010,0.02138,115100.0,115090.0,0.96580194]
[1757935002418,0.38218,115100.0,115090.0,0.96580194]
[1757935002717,0.02138,115100.0,115090.0,0.96580194]
[1757935003419,0.02138,115100.0,115090.0,0.96576194]
[1757935003420,0.38218,115100.0,115090.0,0.96576194]
[1757935005518,0.38218,115100.0,115090.0,0.17128194]
[1757935005718,0.38218,115100.0,115090.0,0.96576194]
[1757935006018,0.38218,115100.0,115090.0,0.17128194]
[1757935006220,0.38218,115100.0,115090.0,0.96576194]
[1757935006720,0.02138,115100.0,115090.0,0.96576194]
[1757935007516,0.02138,115100.0,115090.0,0.17128194]
[1757935007819,0.38218,115100.0,115090.0,0.96576194]
[1757935008009,0.38218,115100.0,115090.0,0.83122]
[1757935008213,0.38218,115100.0,115090.0,0.17128194]
[1757935008614,0.38218,115100.0,115090.0,0.96572194]
[1757935008922,0.51672194,115100.0,115090.0,0.96572194]
[1757935009317,0.66682388,115100.0,115080.0,0.01361]
[1757935009524,0.52477194,115090.0,115080.0,0.95077194]
[1757935009916,0.52477194,115090.0,115080.0,0.15633194]
[1757935010122,0.52477194,115090.0,115080.0,0.95077194]
[1757935010620,0.52477194,115090.0,115080.0,0.96412194]
[1757935011232,0.39023,115090.0,115080.0,0.96412194]
[1757935011527,0.51787194,115090.0,115080.0,0.96412194]
[1757935011929,0.38333,115090.0,115080.0,0.96412194]
[1757935012225,0.38333,115090.0,115080.0,1.09866388]
[1757935012929,0.02253,115090.0,115080.0,1.09866388]
[1757935013226,0.52016194,115100.0,115090.0,0.03514]
[1757935013423,0.54177283,115100.0,115090.0,0.16968194]
[1757935013828,0.38562,115100.0,115090.0,0.16969796]
[1757935014030,0.40723013,115100.0,115090.0,0.16969796]
[1757935016431,0.40494013,115100.0,115090.0,0.16969796]
[1757935017133,0.38333,115100.0,115090.0,0.16969796]
[1757935017427,0.38333,115100.0,115090.0,0.03514]
[1757935017630,0.52478796,115100.0,115080.0,0.14790796]
[1757935017832,0.39566,115090.0,115080.0,0.79444]
[1757935018030,0.39566,115090.0,115070.0,0.14816796]
[1757935018232,0.39566,115090.0,115080.0,0.79444]
[1757935018428,0.53021796,115090.0,115070.0,0.14816796]
[1757935018630,0.53021796,115090.0,115080.0,0.7944]
[1757935018830,0.53021796,115090.0,115070.0,0.14816796]
[1757935019432,0.39566,115090.0,115080.0,0.02203]
[1757935020133,0.39795,115090.0,115080.0,0.02203]
[1757935021428,0.00723,115080.0,115070.0,0.14816796]
[1757935021735,0.38991,115080.0,115070.0,0.81643]
[1757935021933,0.38991,115080.0,115070.0,0.95098796]
[1757935022834,0.38991,115080.0,115070.0,0.96458796]
[1757935026629,0.38268,115080.0,115070.0,0.96458796]
[1757935028132,0.38991,115080.0,115070.0,0.15658796]
[1757935028331,0.38991,115080.0,115070.0,0.95102796]
[1757935030841,0.38991,115080.0,115070.0,0.96462796]
[1757935031443,0.38268,115080.0,115070.0,0.96462796]
[1757935033443,0.38497,115080.0,115070.0,0.96462796]
[1757935034340,0.3922,115080.0,115070.0,0.81647]
[1757935034546,0.3922,115080.0,115070.0,0.95102796]
[1757935035742,0.3922,115080.0,115070.0,0.95098796]
[1757935036045,0.52675796,115080.0,115070.0,0.7944]
[1757935036446,0.52675796,115080.0,115070.0,0.81643]
[1757935037246,0.3922,115080.0,115070.0,0.81643]
[1757935038047,0.400928,115080.0,115070.0,0.81643]
[1757935038748,0.47102153,115080.0,115070.0,0.81643]
[1757935038943,0.46379153,115080.0,115070.0,0.81643]
[1757935039150,0.46379153,115080.0,115070.0,0.83003]
[1757935040352,0.45506353,115080.0,115070.0,0.83003]
[1757935040655,0.45506353,115080.0,115070.0,0.96458796]
[1757935042547,0.46397991,115080.0,115070.0,0.96458796]
[1757935045758,0.45506353,115080.0,115070.0,0.96458796]
[1757935046050,0.45506353,115080.0,115070.0,1.21458796]
[1757935046051,0.04584484,115080.0,115070.0,1.21458796]
[1757935047050,0.02417,115080.0,115070.0,1.21458796]
[1757935047251,0.00229,115080.0,115070.0,1.34914592]
[1757935047456,0.00229,115080.0,115070.0,1.70994592]
[1757935048356,0.00229,115080.0,115070.0,2.34682012]
[1757935048555,0.00229,115080.0,115070.0,2.25994592]
[1757935048855,0.00229,115080.0,115070.0,2.34682012]
[1757935049455,0.00229,115080.0,115070.0,2.25994592]
[1757935049755,0.00229,115080.0,115070.0,2.26146592]
[1757935050657,0.00229,115080.0,115070.0,2.26142592]
[1757935051155,0.00229,115080.0,115070.0,2.52802592]
[1757935059264,0.00229,115080.0,115070.0,2.27802592]
[1757935059564,0.00229,115080.0,115070.0,2.14354796]
[1757935060063,0.00229,115080.0,115070.0,1.34758796]
[1757935060451,0.00229,115080.0,115070.0,2.14338796]
[1757935062565,0.00229,115080.0,115070.0,1.34758796]
[1757935065863,0.00229,115080.0,115070.0,0.81758796]
[1757935066064,0.02557,115080.0,115070.0,0.81758796]
[1757935066362,0.27557,115080.0,115070.0,0.43678796]
[1757935068961,0.27557,115080.0,115070.0,0.17018796]
[1757935071566,0.27557,115080.0,115070.0,0.03563]
[1757935071866,0.27557,115080.0,115070.0,0.17018796]
[1757935074461,0.27557,115080.0,115070.0,0.03563]
[1757935074662,0.27557,115080.0,115070.0,0.17018796]
[1757935075771,0.27557,115080.0,115070.0,0.17021953]
[1757935078371,0.00229,115080.0,115070.0,1.43560906]
[1757935079168,0.00229,115080.0,115070.0,1.18560906]
[1757935079375,0.02481,115080.0,115070.0,0.39643]
[1757935079560,0.02481,115080.0,115070.0,0.03563]
[1757935079761,0.15939953,115080.0,115070.0,0.17021953]
[1757935079963,0.15939953,115080.0,115070.0,0.03563]
[1757935080170,0.15939953,115080.0,115070.0,0.17021953]
[1757935081368,0.02481,115080.0,115070.0,0.17021953]
[1757935081568,0.15939953,115080.0,115070.0,0.17021953]
[1757935083476,0.02481,115080.0,115070.0,0.17021953]
[1757935083668,0.15939953,115080.0,115070.0,0.17021953]
[1757935084876,0.02481,115080.0,115070.0,0.17021953]
[1757935085064,0.15939953,115080.0,115070.0,0.17021953]
[1757935085779,0.02481,115080.0,115070.0,0.17021953]
[1757935086076,0.04653558,115080.0,115070.0,0.03563]
[1757935086277,0.04653558,115080.0,115070.0,0.17021953]
[1757935088177,0.04653558,115080.0,115070.0,0.30480906]
[1757935088469,0.00229,115080.0,115070.0,1.09560906]
[1757935088872,0.00229,115080.0,115070.0,1.89280906]
[1757935089072,0.00229,115080.0,115070.0,1.71280906]
[1757935092188,0.00229,115080.0,115070.0,0.91560906]
[1757935092480,0.02481,115080.0,115070.0,1.71304906]
[1757935092778,0.02481,115080.0,115070.0,0.42021953]
[1757935093277,0.02481,115080.0,115070.0,1.21769953]
[1757935094081,0.02481,115080.0,115070.0,1.35224906]
[1757935094681,0.02481,115080.0,115070.0,1.71304906]
[1757935095581,0.00229,115080.0,115070.0,1.71304906]
[1757935098087,0.02481,115080.0,115070.0,1.71264906]
[1757935098579,0.02481,115080.0,115070.0,1.35184906]
[1757935098780,0.02481,115080.0,115070.0,1.71264906]
[1757935099481,0.02481,115080.0,115070.0,1.44347]
[1757935099685,0.02481,115080.0,115070.0,1.71264906]
[1757935100373,0.00229,115080.0,115070.0,1.71264906]
[1757935105988,0.00229,115080.0,115070.0,1.79952326]
[1757935106584,0.00229,115080.0,115070.0,1.71264906]
[1757935108488,0.00229,115080.0,115070.0,0.91560906]
[1757935108879,0.00229,115080.0,115070.0,1.71120906]
[1757935119289,0.00229,115080.0,115070.0,1.46120906]
[1757935122795,0.00229,115080.0,115070.0,0.66560906]
[1757935122999,0.02467,115080.0,115070.0,1.46032906]
[1757935125898,0.00229,115080.0,115070.0,1.46032906]
[1757935127197,0.00229,115080.0,115070.0,1.19115]
[1757935127400,0.00229,115080.0,115070.0,1.46032906]
[1757935130399,0.02467,115080.0,115070.0,0.66560906]
[1757935130600,0.27467,115080.0,115070.0,0.17021953]
[1757935130800,0.40925953,115080.0,115070.0,0.96489953]
[1757935130995,0.40925953,115080.0,115070.0,0.17021953]
[1757935131194,0.40925953,115080.0,115070.0,0.96489953]
[1757935131900,0.27467,115080.0,115070.0,0.96489953]
[1757935132602,0.27467,115080.0,115070.0,0.83031]
[1757935132903,0.27467,115080.0,115070.0,0.96489953]
[1757935135503,0.27467,115080.0,115070.0,1.09948906]
[1757935135805,0.27467,115080.0,115070.0,0.96488866]
[1757935140610,0.27467,115080.0,115070.0,0.17020866]
[1757935140811,0.27467,115080.0,115070.0,0.96488866]
[1757935141511,0.27467,115080.0,115070.0,0.17020866]
[1757935141810,0.27467,115080.0,115070.0,0.96488866]
[1757935142714,0.27467,115080.0,115070.0,1.32568866]
[1757935142909,0.00229,115080.0,115070.0,1.32568866]
[1757935143112,0.00229,115080.0,115070.0,1.46026732]
[1757935143409,0.00229,115080.0,115070.0,0.96488866]
[1757935143615,0.00229,115080.0,115070.0,1.32564866]
[1757935146909,0.3608,115100.0,115070.0,1.57326152]
[1757935147109,0.02166608,115100.0,115090.0,0.16939866]
[1757935147311,0.38232,115110.0,115100.0,0.03482]
[1757935147515,0.40398192,115110.0,115100.0,0.96403866]
[1757935148418,0.29318192,115110.0,115100.0,0.96403866]
[1757935150416,0.29318192,115110.0,115100.0,0.96395866]
[1757935151816,0.02166192,115110.0,115100.0,0.96395866]
[1757935152310,0.02166192,115110.0,115100.0,1.32475866]
[1757935152518,0.38232,115130.0,115120.0,0.03482]
[1757935152721,0.40395701,115130.0,115120.0,0.96391866]
[1757935154219,0.40394198,115130.0,115120.0,0.96391866]
[1757935154513,0.40394198,115130.0,115120.0,0.16939866]
[1757935154719,0.40394198,115130.0,115120.0,0.96387866]
[1757935154913,0.40394198,115130.0,115120.0,0.98398671]
[1757935155211,0.38232,115130.0,115120.0,0.98398671]
[1757935156120,0.38232,115140.0,115130.0,0.01283]
[1757935156322,0.0431202,115140.0,115130.0,0.16939866]
[1757935156512,0.4039202,115140.0,115130.0,0.96383866]
[1757935157417,0.38232,115140.0,115130.0,0.96383866]
[1757935157815,0.38232,115140.0,115130.0,0.16939866]
[1757935158117,0.40390377,115140.0,115130.0,0.96379866]
[1757935158317,0.38232,115140.0,115130.0,0.96379866]
[1757935160417,0.38232,115140.0,115130.0,0.96371866]
[1757935160623,0.3608,115140.0,115130.0,0.96371866]
[1757935161514,0.38232,115140.0,115130.0,0.16939866]
[1757935161911,0.38232,115140.0,115130.0,0.03482]
[1757935162117,0.52981866,115140.0,115130.0,0.81631]
[1757935162315,0.39524,115140.0,115130.0,0.81627]
[1757935162529,0.38232,115140.0,115130.0,0.8291]
[1757935164927,0.38232,115140.0,115130.0,0.03482]
[1757935165124,0.38232,115140.0,115130.0,0.16939866]
[1757935165331,0.39524,115140.0,115130.0,0.02199]
[1757935165923,0.52981866,115140.0,115130.0,0.02199]
[1757935166626,0.91439732,115140.0,115120.0,0.01283]
[1757935166926,0.52465866,115130.0,115120.0,0.02195]
[1757935167232,0.39008,115130.0,115120.0,0.02195]
[1757935167425,0.52465866,115130.0,115120.0,0.02195]
[1757935168332,0.52465866,115130.0,115110.0,0.94160866]
[1757935168634,0.38311,115120.0,115110.0,0.16935866]
[1757935168834,0.53090866,115120.0,115100.0,1.70158168]
[1757935169035,0.49537866,115110.0,115100.0,2.49574168]
[1757935169230,0.3608,115110.0,115100.0,2.49574168]
[1757935170228,0.3608,115110.0,115100.0,0.03322168]
[1757935170436,0.52491866,115110.0,115100.0,0.83650168]
[1757935170630,0.39034,115110.0,115100.0,0.83650168]
[1757935170936,0.52491866,115110.0,115100.0,0.04234168]
[1757935171136,0.52491866,115110.0,115100.0,0.83650168]
[1757935171632,0.52491866,115110.0,115100.0,0.04234168]
[1757935172026,0.5336415,115110.0,115100.0,0.04234168]
[1757935172933,0.55522526,115110.0,115100.0,0.04234168]
[1757935173837,0.55522526,115110.0,115100.0,0.02039168]
[1757935174031,0.55522526,115110.0,115090.0,0.01283]
[1757935174231,0.53060866,115100.0,115090.0,0.81611]
[1757935175438,0.55220012,115100.0,115090.0,0.81611]
[1757935175638,0.55220012,115100.0,115090.0,0.02195]
[1757935176634,0.53060866,115100.0,115090.0,0.02195]
[1757935177234,0.55220567,115100.0,115090.0,0.02195]
[1757935177640,0.53060866,115100.0,115090.0,0.02195]
[1757935178042,0.59839733,115100.0,115090.0,0.02195]
[1757935178937,0.45089867,115100.0,115090.0,0.03508]
[1757935179141,0.58547733,115100.0,115090.0,0.03508]
[1757935180139,0.46381867,115100.0,115090.0,0.03508]
[1757935180338,0.59839733,115100.0,115090.0,0.03508]
[1757935181645,0.45089867,115100.0,115090.0,0.03508]
[1757935184444,0.58547733,115100.0,115090.0,0.03508]
[1757935184646,0.60705751,115100.0,115090.0,0.03508]
[1757935184940,0.47247885,115100.0,115090.0,0.03508]
[1757935186844,0.48539885,115100.0,115090.0,0.02195]
[1757935187044,0.61997751,115100.0,115090.0,0.02195]
[1757935187947,0.61997751,115100.0,115080.0,0.96234213]
[1757935188447,0.61997751,115100.0,115090.0,0.02195]
[1757935190843,0.48539885,115100.0,115090.0,0.02195]
[1757935191043,0.61997751,115100.0,115090.0,0.02195]
[1757935193151,0.61997751,115100.0,115080.0,0.02163]
[1757935193152,0.00697,115090.0,115080.0,0.02163]
[1757935193451,0.03538,115080.0,115070.0,0.02163]
[1757935193652,0.16995866,115080.0,115070.0,0.02163]
[1757935194045,0.03538,115080.0,115070.0,0.03489]
[1757935194948,0.02258,115080.0,115070.0,0.03489]
[1757935196541,0.15715866,115080.0,115070.0,0.03489]
[1757935197752,0.15719609,115080.0,115070.0,0.16950609]
[1757935198854,0.044215,115080.0,115070.0,0.16950609]
[1757935199052,0.17883109,115080.0,115070.0,0.16950609]
[1757935200355,0.15719609,115080.0,115070.0,0.16950609]
[1757935200557,0.17883708,115080.0,115070.0,0.16950609]
[1757935201857,0.17883708,115080.0,115070.0,0.03489]
[1757935202058,0.17883708,115080.0,115070.0,0.16950609]
[1757935202958,0.53963708,115080.0,115070.0,0.16950609]
[1757935203260,0.53963708,115080.0,115070.0,0.96378609]
[1757935203560,0.55281708,115080.0,115070.0,0.96378609]
[1757935203751,0.55281708,115080.0,115070.0,0.95052609]
[1757935203953,0.68743317,115080.0,115070.0,0.95052609]
[1757935204156,0.55281708,115080.0,115070.0,0.95052609]
[1757935204356,0.55281708,115080.0,115070.0,0.96410609]
[1757935204557,0.53963708,115080.0,115070.0,0.96410609]
[1757935205656,0.53963708,115080.0,115070.0,0.16982609]
[1757935205859,0.68743317,115080.0,115070.0,0.15624609]
[1757935206459,0.68743317,115080.0,115070.0,0.16982609]
[1757935207754,0.67425317,115080.0,115070.0,0.16982609]
[1757935208162,0.53963708,115080.0,115070.0,0.16982609]
[1757935209864,0.53963708,115080.0,115070.0,0.03521]
[1757935210065,0.53963708,115080.0,115070.0,0.16982609]
[1757935210766,0.67425317,115080.0,115070.0,0.16982609]
[1757935213866,0.68743317,115080.0,115070.0,0.02163]
[1757935214161,0.03035,115070.0,115060.0,0.05640668]
[1757935214367,0.54740708,115070.0,115060.0,0.05640668]
[1757935218071,0.41279099,115070.0,115060.0,0.05640668]
[1757935218271,0.54740708,115070.0,115060.0,0.05640668]
[1757935219881,0.54740708,115070.0,115060.0,0.02292]
[1757935219882,0.79740708,115070.0,115060.0,0.02292]
[1757935220175,0.79740708,115070.0,115050.0,0.94198609]
[1757935220376,0.51849609,115060.0,115050.0,0.96490609]
[1757935221279,0.58815011,115060.0,115050.0,0.96490609]
[1757935221574,0.58815011,115060.0,115050.0,0.03605]
[1757935221978,0.58815011,115060.0,115050.0,0.17066609]
[1757935222871,0.58815011,115060.0,115050.0,0.03605]
[1757935223073,0.58815011,115060.0,115050.0,0.17066609]
[1757935223674,0.6098005,115060.0,115050.0,0.17066609]
[1757935224779,0.75316622,115060.0,115050.0,0.03605]
[1757935224981,0.03005,115050.0,115040.0,0.83046]
[1757935225271,0.52546609,115050.0,115040.0,0.96507609]
[1757935225477,0.38388,115050.0,115040.0,0.96507609]
[1757935225679,0.51849609,115050.0,115040.0,0.96507609]
[1757935228484,0.51849609,115050.0,115040.0,0.17079609]
[1757935228883,0.51849609,115050.0,115040.0,0.02292]
[1757935228884,0.52546609,115050.0,115040.0,0.02292]
[1757935230084,0.77546609,115050.0,115040.0,0.02324]
[1757935231192,0.77546609,115050.0,115030.0,0.82975609]
[1757935231486,0.51699609,115040.0,115030.0,0.96571609]
[1757935232980,0.38238,115040.0,115030.0,0.96571609]
[1757935233180,0.51699609,115040.0,115030.0,0.96571609]
[1757935233382,0.51699609,115040.0,115030.0,0.8311]
[1757935233578,0.66479218,115040.0,115030.0,0.02324]
[1757935233788,0.91479218,115040.0,115020.0,0.14819609]
[1757935233987,0.52426609,115030.0,115020.0,0.03682]
[1757935234184,0.52426609,115030.0,115020.0,0.02324]
[1757935235484,0.52426609,115030.0,115020.0,0.02524]
[1757935235784,0.52426609,115030.0,115020.0,0.02624]
[1757935236690,0.52426609,115030.0,115020.0,0.02424]
[1757935236893,0.52426609,115030.0,115020.0,0.02624]
[1757935238279,0.51699609,115030.0,115020.0,0.0397]
[1757935238480,0.51699609,115030.0,115020.0,0.17431609]
[1757935239691,0.38238,115030.0,115020.0,0.17431609]
[1757935239991,0.51699609,115030.0,115020.0,0.17431609]
[1757935241290,0.5385904,115030.0,115020.0,0.17431609]
[1757935243091,0.53859197,115030.0,115020.0,0.17431609]
[1757935246699,0.53859197,115030.0,115020.0,0.0397]
[1757935246900,0.53859197,115030.0,115020.0,0.17431609]
[1757935247402,0.53859197,115030.0,115020.0,0.0397]
[1757935247603,0.53859197,115030.0,115020.0,0.17431609]
[1757935248603,0.53859197,115030.0,115020.0,0.0397]
[1757935248900,0.53859197,115030.0,115020.0,0.17431609]
[1757935251392,0.40397588,115030.0,115020.0,0.17431609]
[1757935251599,0.40397588,115030.0,115020.0,0.30893218]
[1757935251902,0.40397588,115030.0,115020.0,0.55893218]
[1757935252097,0.38386,115040.0,115030.0,0.03702]
[1757935252303,0.38386,115040.0,115030.0,0.17163609]
[1757935252499,0.38386,115040.0,115030.0,0.96663609]
[1757935252701,0.38386,115050.0,115040.0,0.03702]
[1757935253000,0.02306,115050.0,115040.0,0.30625218]
[1757935253209,0.02306,115050.0,115040.0,1.10145218]
[1757935253705,0.02306,115050.0,115040.0,0.83222]
[1757935253905,0.02306,115050.0,115040.0,1.10145218]
[1757935254201,0.02306,115050.0,115040.0,1.12139685]
[1757935254904,0.02306,115050.0,115040.0,0.32619685]
[1757935255406,0.02306,115050.0,115040.0,1.12115685]
[1757935255699,0.02306,115050.0,115040.0,0.05696467]
[1757935256005,0.51847609,115050.0,115040.0,0.98654076]
[1757935256206,0.51847609,115050.0,115040.0,0.19158076]
[1757935257101,0.02306,115050.0,115040.0,0.32619685]
[1757935257808,0.02306,115050.0,115040.0,0.19161912]
[1757935258008,0.46132959,115060.0,115050.0,0.03468]
[1757935258304,0.48311912,115060.0,115050.0,0.03468]
[1757935259404,0.47452355,115060.0,115050.0,0.03468]
[1757935259905,0.04406953,115060.0,115050.0,1.0992289]
[1757935260106,0.3608,115070.0,115050.0,1.7100289]
[1757935260306,0.40486321,115070.0,115060.0,0.16933445]